bitfinex-derivatives/quotes_BTCF0:USTF0_20240913
["timestamp","ask_amount","ask_price","bid_price","bid_amount"]
[1726192447432,0.3608,58076.0,58072.0,0.11]
[1726192447630,0.3608,58076.0,58075.0,0.11]
[1726192448235,0.3608,58076.0,58075.0,0.18]
[1726192449140,0.3608,58076.0,58075.0,0.267091]
[1726192450636,0.3608,58076.0,58075.0,0.268091]
[1726192452138,0.3608,58076.0,58075.0,0.29845597]
[1726192453139,0.0486,58079.0,58078.0,0.086086]
[1726192454139,0.0486,58079.0,58078.0,0.087086]
[1726192455345,0.0486,58079.0,58078.0,0.088086]
[1726192458642,0.20533748,58079.0,58078.0,0.06812752]
[1726192464654,0.20533748,58079.0,58078.0,0.05281488]
[1726192466549,0.0486,58079.0,58078.0,0.05281488]
[1726192470051,0.0486,58079.0,58078.0,0.16281488]
[1726192474367,0.0478,58082.0,58078.0,0.16281488]
[1726192474368,0.0478,58082.0,58081.0,0.086082]
[1726192474664,0.0478,58082.0,58081.0,0.196082]
[1726192475465,0.0515,58085.0,58084.0,0.086077]
[1726192475669,0.3608,58086.0,58085.0,0.086076]
[1726192475854,0.135671,58089.0,58084.0,0.11]
[1726192476057,0.135671,58089.0,58088.0,0.11]
[1726192476252,0.0496,58089.0,58088.0,0.11]
[1726192477163,0.0496,58089.0,58088.0,0.196071]
[1726192477466,0.0496,58089.0,58085.0,0.086075]
[1726192477764,0.3608,58086.0,58085.0,0.086075]
[1726192478763,0.3608,58086.0,58085.0,0.087075]
[1726192479162,0.3608,58086.0,58085.0,0.088075]
[1726192480453,0.0488,58087.0,58085.0,0.088075]
[1726192480660,0.0488,58087.0,58086.0,0.086074]
[1726192481165,0.0496,58089.0,58088.0,0.086071]
[1726192481472,0.0496,58089.0,58088.0,0.196071]
[1726192481667,0.27695176,58089.0,58088.0,0.15199037]
[1726192482558,0.20631603,58089.0,58088.0,0.15299037]
[1726192483059,0.15671603,58089.0,58088.0,0.15299037]
[1726192483260,0.22735176,58089.0,58088.0,0.15299037]
[1726192483454,0.15671603,58089.0,58088.0,0.15299037]
[1726192483666,0.15671603,58089.0,58088.0,0.51379037]
[1726192484357,0.15671603,58089.0,58088.0,0.54510917]
[1726192485458,0.004,58094.0,58093.0,0.086064]
[1726192485656,0.22358154,58097.0,58096.0,0.08606]
[1726192485874,0.3608,58102.0,58099.0,0.086054]
[1726192485875,0.3648,58102.0,58099.0,0.086054]
[1726192486064,0.3608,58102.0,58101.0,0.11]
[1726192486261,0.43143573,58102.0,58101.0,0.11]
[1726192486572,0.3608,58102.0,58101.0,0.11]
[1726192488169,0.3608,58102.0,58101.0,0.111]
[1726192488367,0.42252335,58102.0,58101.0,0.112]
[1726192488568,0.51530825,58102.0,58101.0,0.112]
[1726192490176,0.51530825,58102.0,58101.0,0.002]
[1726192490480,0.41362252,58102.0,58101.0,0.002]
[1726192490771,0.56813077,58102.0,58101.0,0.002]
[1726192490967,0.41362252,58102.0,58101.0,0.002]
[1726192491568,0.41362251,58102.0,58101.0,0.002]
[1726192491773,0.3608,58102.0,58101.0,0.002]
[1726192493576,0.40294225,58102.0,58101.0,0.002]
[1726192494073,0.04214225,58102.0,58101.0,0.002]
[1726192494478,0.04214225,58102.0,58101.0,0.088052]
[1726192495189,0.40294225,58102.0,58101.0,0.088052]
[1726192496074,0.086047,58105.0,58103.0,0.086048]
[1726192496378,0.04214131,58104.0,58103.0,0.086048]
[1726192496579,0.3608,58107.0,58106.0,0.086045]
[1726192496776,0.64443478,58107.0,58106.0,0.086045]
[1726192496981,0.51747412,58107.0,58106.0,0.086045]
[1726192497173,0.4557567,58107.0,58106.0,0.086045]
[1726192497373,0.51747412,58107.0,58106.0,0.086045]
[1726192497573,0.4557567,58107.0,58106.0,0.086045]
[1726192498271,0.61010657,58107.0,58106.0,0.087045]
[1726192498470,0.61010657,58107.0,58106.0,0.088045]
[1726192498682,0.4557567,58107.0,58106.0,0.11925165]
[1726192499669,0.61010657,58107.0,58106.0,0.11925165]
[1726192499875,0.56796516,58107.0,58106.0,0.11925165]
[1726192500071,0.6101017,58107.0,58106.0,0.11925165]
[1726192500477,0.54179483,58107.0,58106.0,0.002]
[1726192501485,0.45575183,58107.0,58106.0,0.088045]
[1726192501777,0.62720357,58107.0,58106.0,0.088045]
[1726192502485,0.62720466,58107.0,58106.0,0.088045]
[1726192503277,0.17145283,58107.0,58106.0,0.448845]
[1726192503583,0.004,58112.0,58111.0,0.086037]
[1726192503788,0.3618,58115.0,58111.0,0.086037]
[1726192503982,0.3608,58115.0,58114.0,0.18]
[1726192504887,0.3608,58115.0,58114.0,0.266033]
[1726192505690,0.1028,58118.0,58117.0,0.086029]
[1726192506183,0.004,58125.0,58114.0,0.00188]
[1726192506184,0.08603,58117.0,58114.0,0.00188]
[1726192506385,0.0531,58116.0,58114.0,0.002]
[1726192506777,0.0531,58116.0,58115.0,0.18]
[1726192506975,0.004,58125.0,58115.0,1.057]
[1726192507188,0.004,58125.0,58124.0,0.5408]
[1726192507374,0.1039,58134.0,58124.0,0.5408]
[1726192507684,0.1039,58134.0,58127.0,0.086014]
[1726192507889,0.1039,58134.0,58124.0,0.5408]
[1726192508377,0.1039,58134.0,58124.0,0.5418]
[1726192508581,0.1039,58134.0,58124.0,0.57321278]
[1726192508879,0.1039,58134.0,58124.0,0.57221278]
[1726192509084,0.1039,58134.0,58124.0,0.57321278]
[1726192509298,0.1039,58134.0,58125.0,0.086016]
[1726192509588,0.1039,58134.0,58124.0,0.00188]
[1726192509589,0.446808,58131.0,58124.0,0.00188]
[1726192509887,0.446808,58131.0,58124.0,0.181]
[1726192510197,0.3608,58131.0,58130.0,0.086009]
[1726192510391,0.1039,58134.0,58133.0,0.086005]
[1726192510591,0.1039,58134.0,58133.0,0.266005]
[1726192510793,0.4647,58134.0,58133.0,0.266005]
[1726192511595,0.4647,58134.0,58130.0,0.001]
[1726192512186,0.4647,58134.0,58133.0,0.001]
[1726192512589,0.4647,58134.0,58133.0,0.267005]
[1726192512789,0.1039,58134.0,58133.0,0.267005]
[1726192513094,0.1039,58134.0,58133.0,0.2994339]
[1726192513779,0.1039,58134.0,58133.0,0.2984339]
[1726192513981,0.1039,58134.0,58133.0,0.267005]
[1726192514379,0.1039,58134.0,58133.0,0.268005]
[1726192514787,0.1039,58134.0,58133.0,0.088005]
[1726192517492,0.0501,58137.0,58133.0,0.002]
[1726192517797,0.0501,58137.0,58136.0,0.18]
[1726192518993,0.0501,58137.0,58133.0,0.002]
[1726192519187,0.15367249,58135.0,58133.0,0.087004]
[1726192519496,0.24857384,58134.0,58133.0,0.088004]
[1726192519696,0.09490135,58134.0,58133.0,0.088004]
[1726192519881,0.085989,58144.0,58133.0,0.002]
[1726192520081,0.04211118,58143.0,58141.0,0.18]
[1726192520289,0.17869745,58142.0,58141.0,0.18]
[1726192520488,0.17866827,58142.0,58141.0,0.18]
[1726192522097,0.17866827,58142.0,58141.0,0.181]
[1726192522305,0.17866771,58142.0,58141.0,0.181]
[1726192523284,0.17866771,58142.0,58141.0,0.182]
[1726192523489,0.17870987,58142.0,58141.0,0.182]
[1726192524399,0.17870987,58142.0,58141.0,0.267993]
[1726192524696,0.04211062,58142.0,58141.0,0.267993]
[1726192525201,0.12810262,58142.0,58141.0,0.267993]
[1726192525602,0.04211062,58142.0,58141.0,0.267993]
[1726192526800,0.446783,58148.0,58144.0,0.085989]
[1726192526801,0.447663,58148.0,58144.0,0.085989]
[1726192526999,0.085986,58146.0,58144.0,0.265989]
[1726192527587,0.3608,58145.0,58144.0,0.265989]
[1726192527993,0.3608,58145.0,58144.0,0.266989]
[1726192529094,0.3608,58145.0,58144.0,0.267989]
[1726192529993,0.446787,58145.0,58144.0,0.267989]
[1726192531497,0.3608,58145.0,58144.0,0.267989]
[1726192533903,0.3608,58145.0,58144.0,0.266989]
[1726192533904,0.45569089,58145.0,58144.0,0.266989]
[1726192534198,0.45569089,58145.0,58144.0,0.267989]
[1726192535006,0.09489089,58145.0,58144.0,0.267989]
[1726192536690,0.09489103,58145.0,58144.0,0.267989]
[1726192540209,0.09489103,58145.0,58144.0,0.197989]
[1726192540210,0.15656567,58145.0,58144.0,0.197989]
[1726192541399,0.1565653,58145.0,58144.0,0.197989]
[1726192541799,0.086906,58146.0,58145.0,0.085987]
[1726192542003,0.085986,58146.0,58145.0,0.085987]
[1726192542909,0.085986,58146.0,58145.0,0.086987]
[1726192543509,0.085986,58146.0,58145.0,0.087987]
[1726192543803,0.004,58152.0,58147.0,0.085983]
[1726192544000,0.3608,58153.0,58150.0,0.11]
[1726192545409,0.3608,58153.0,58152.0,0.085977]
[1726192546499,0.3608,58153.0,58152.0,0.087977]
[1726192547109,0.0545,58159.0,58158.0,0.085968]
[1726192547308,0.0545,58159.0,58152.0,0.002]
[1726192547309,0.103,58159.0,58156.0,0.11]
[1726192547611,0.085969,58158.0,58156.0,0.11]
[1726192548002,0.085969,58158.0,58157.0,0.085969]
[1726192548208,0.085969,58158.0,58157.0,0.265969]
[1726192548606,0.103,58159.0,58158.0,0.085968]
[1726192548905,0.25953368,58159.0,58157.0,0.18]
[1726192549215,0.15653368,58158.0,58157.0,0.266969]
[1726192549512,0.15653368,58158.0,58157.0,0.267969]
[1726192550007,0.15653368,58158.0,58157.0,0.266969]
[1726192550311,0.15653368,58158.0,58157.0,0.267969]
[1726192551400,0.15653368,58158.0,58157.0,0.266969]
[1726192552403,0.15653368,58158.0,58157.0,0.267969]
[1726192552708,0.09487159,58158.0,58157.0,0.267969]
[1726192554806,0.09487159,58158.0,58157.0,0.087969]
[1726192555013,0.09487159,58158.0,58157.0,0.002]
[1726192555222,0.24250168,58158.0,58157.0,0.00153693]
[1726192555721,0.24250168,58158.0,58157.0,0.002]
[1726192556011,0.42250199,58158.0,58157.0,0.002]
[1726192556914,1.42390907,58158.0,58157.0,0.002]
[1726192557817,0.085978,58151.0,58150.0,0.004]
[1726192558010,0.08598,58150.0,58148.0,0.085982]
[1726192558214,0.0499,58149.0,58148.0,0.085982]
[1726192558913,0.0489,58149.0,58148.0,0.085982]
[1726192559308,0.0489,58149.0,58148.0,0.086982]
[1726192559709,0.0489,58149.0,58148.0,0.087982]
[1726192559918,0.085978,58152.0,58149.0,0.085981]
[1726192560123,0.085978,58152.0,58151.0,0.18]
[1726192561006,0.134678,58152.0,58151.0,0.18]
[1726192561215,0.085981,58149.0,58148.0,0.002]
[1726192561622,0.085981,58149.0,58148.0,0.001]
[1726192561821,0.002,58152.0,58151.0,0.085978]
[1726192562116,0.002,58152.0,58151.0,0.265978]
[1726192562521,0.003,58152.0,58151.0,0.266978]
[1726192563114,0.001,58152.0,58151.0,0.266978]
[1726192564127,0.003,58158.0,58157.0,0.085969]
[1726192564424,0.003,58158.0,58157.0,0.626769]
[1726192565217,0.003,58158.0,58157.0,1.226769]
[1726192565726,0.006,58158.0,58157.0,0.628769]
[1726192565924,0.006,58158.0,58157.0,1.744609]
[1726192567722,0.006,58158.0,58157.0,1.7956921]
[1726192567928,0.003,58158.0,58157.0,1.7946921]
[1726192568128,0.006,58158.0,58157.0,1.7956921]
[1726192568930,0.006,58158.0,58157.0,1.91338436]
[1726192569126,0.004,58172.0,58170.0,0.085949]
[1726192569429,0.1,58174.0,58171.0,0.265949]
[1726192571321,0.1,58174.0,58172.0,0.085947]
[1726192571519,0.1,58174.0,58170.0,0.002]
[1726192571520,0.3608,58173.0,58170.0,0.002]
[1726192571716,0.085949,58171.0,58163.0,0.004]
[1726192571919,0.085959,58164.0,58156.0,0.3276]
[1726192572126,0.22705336,58163.0,58161.0,0.085963]
[1726192572327,0.3608,58165.0,58161.0,0.085963]
[1726192572328,0.15651034,58162.0,58161.0,0.085963]
[1726192572530,0.15651034,58162.0,58161.0,0.265963]
[1726192572932,0.22705336,58162.0,58161.0,0.265963]
[1726192573126,0.15651034,58162.0,58161.0,0.265963]
[1726192573325,0.15651034,58162.0,58161.0,0.266963]
[1726192573529,0.15651034,58162.0,58161.0,0.782763]
[1726192573837,0.15651034,58162.0,58161.0,0.266963]
[1726192574219,0.15651034,58162.0,58161.0,0.267963]
[1726192574529,0.15651034,58162.0,58161.0,1.383763]
[1726192574930,0.15651034,58162.0,58161.0,1.382763]
[1726192575123,0.15651034,58162.0,58161.0,1.383763]
[1726192575519,0.15651034,58162.0,58161.0,1.432763]
[1726192575928,0.15651034,58162.0,58161.0,1.46328779]
[1726192577233,0.06164217,58166.0,58162.0,0.085962]
[1726192577425,0.3608,58173.0,58172.0,0.085947]
[1726192577622,0.3608,58173.0,58172.0,0.265947]
[1726192579038,0.3608,58173.0,58172.0,0.266947]
[1726192580237,0.3608,58173.0,58172.0,0.267947]
[1726192581730,0.596027,58186.0,58179.0,0.085937]
[1726192581934,0.085928,58185.0,58179.0,0.265937]
[1726192582142,0.085928,58185.0,58181.0,0.085933]
[1726192582341,0.40978,58186.0,58185.0,0.085928]
[1726192582634,0.3608,58192.0,58191.0,0.085919]
[1726192582832,0.3608,58192.0,58191.0,0.265919]
[1726192583736,0.085924,58188.0,58182.0,0.085932]
[1726192583938,0.3608,58186.0,58182.0,0.085932]
[1726192584339,0.3608,58186.0,58183.0,0.18]
[1726192584535,0.3608,58186.0,58185.0,0.085928]
[1726192584838,0.3608,58192.0,58191.0,0.085919]
[1726192585035,0.3608,58192.0,58191.0,0.265919]
[1726192585340,0.3608,58192.0,58191.0,0.266919]
[1726192585636,0.3608,58201.0,58200.0,0.085906]
[1726192585838,0.3608,58201.0,58200.0,0.265906]
[1726192586139,0.45560435,58201.0,58200.0,0.265906]
[1726192586527,0.64351366,58201.0,58200.0,0.265906]
[1726192586837,0.15642275,58201.0,58200.0,0.265906]
[1726192587031,0.09480435,58201.0,58200.0,0.266906]
[1726192587231,0.09580435,58201.0,58200.0,0.267906]
[1726192587533,0.18877003,58201.0,58200.0,0.267906]
[1726192587739,0.24150329,58201.0,58200.0,0.267906]
[1726192587941,0.18777003,58201.0,58200.0,0.266906]
[1726192588243,0.09580435,58201.0,58200.0,0.267906]
[1726192588439,0.18871951,58201.0,58200.0,0.267906]
[1726192588740,0.09580435,58201.0,58200.0,0.267906]
[1726192588936,0.18875461,58201.0,58200.0,0.267906]
[1726192589135,0.2308257,58201.0,58200.0,0.267906]
[1726192589343,0.09580435,58201.0,58200.0,0.267906]
[1726192589937,0.28355896,58201.0,58200.0,0.267906]
[1726192590238,0.04307109,58201.0,58200.0,0.267906]
[1726192591044,0.09579591,58201.0,58200.0,0.267906]
[1726192591547,0.04307109,58201.0,58200.0,0.267906]
[1726192591937,0.04307109,58201.0,58200.0,1.383346]
[1726192592440,0.001,58201.0,58200.0,1.830052]
[1726192592753,0.13645125,58206.0,58200.0,1.65824]
[1726192592953,0.04206063,58205.0,58204.0,0.2659]
[1726192593431,0.04206063,58205.0,58204.0,1.38134]
[1726192594040,0.001,58206.0,58204.0,1.29544]
[1726192594232,0.001,58206.0,58204.0,0.18]
[1726192594435,0.001,58206.0,58205.0,0.5154]
[1726192595143,0.0525,58211.0,58210.0,0.085891]
[1726192595443,0.0525,58211.0,58210.0,0.265891]
[1726192595836,0.0548,58217.0,58216.0,0.085882]
[1726192596051,0.0508,58217.0,58216.0,0.265882]
[1726192597340,0.0508,58217.0,58216.0,0.266882]
[1726192597548,0.0508,58217.0,58216.0,0.181]
[1726192597737,0.136681,58217.0,58216.0,0.001]
[1726192598133,0.136681,58217.0,58216.0,0.002]
[1726192600438,0.136681,58217.0,58212.0,0.18]
[1726192600439,0.085882,58216.0,58205.0,0.004]
[1726192600735,0.085901,58203.0,58202.0,0.004]
[1726192600945,0.085904,58201.0,58197.0,0.18]
[1726192601244,0.3608,58206.0,58193.0,0.00088]
[1726192601245,0.3608,58198.0,58195.0,0.03126577]
[1726192601552,0.3608,58198.0,58197.0,0.18]
[1726192601842,0.3598,58198.0,58197.0,0.26591]
[1726192602051,0.3588,58198.0,58197.0,0.26591]
[1726192605049,0.3618,58198.0,58197.0,0.26691]
[1726192605441,0.003,58198.0,58197.0,0.26691]
[1726192605645,0.004,58205.0,58204.0,0.0859]
[1726192605957,0.3608,58206.0,58205.0,0.085898]
[1726192606853,0.0493,58212.0,58211.0,0.08589]
[1726192607054,0.0493,58212.0,58211.0,0.26589]
[1726192607455,0.004,58221.0,58211.0,0.18]
[1726192607653,0.004,58221.0,58214.0,0.085885]
[1726192607846,0.085874,58222.0,58217.0,0.08588]
[1726192608049,0.085874,58222.0,58221.0,0.18]
[1726192608552,0.3608,58228.0,58227.0,0.085866]
[1726192608757,0.3608,58228.0,58227.0,0.265866]
[1726192609759,0.3608,58228.0,58227.0,0.266866]
[1726192610253,0.1026,58235.0,58234.0,0.085856]
[1726192610447,0.051,58241.0,58234.0,0.265856]
[1726192610649,0.1018,58241.0,58234.0,0.265856]
[1726192611258,0.0508,58241.0,58235.0,0.085853]
[1726192611646,0.3608,58242.0,58235.0,0.3608]
[1726192611845,0.3608,58242.0,58240.0,0.18]
[1726192612348,0.0509,58249.0,58248.0,0.085835]
[1726192612543,0.49825125,58251.0,58250.0,0.085832]
[1726192612758,0.49725125,58251.0,58250.0,0.085832]
[1726192613256,0.3608,58257.0,58256.0,0.085823]
[1726192613455,0.3608,58263.0,58259.0,0.085818]
[1726192613755,0.3608,58263.0,58257.0,0.18]
[1726192614850,0.3608,58263.0,58261.0,0.085816]
[1726192616159,0.3608,58263.0,58261.0,0.086816]
[1726192617259,0.69492,58262.0,58255.0,0.085824]
[1726192617454,0.5408,58256.0,58246.0,0.004]
[1726192617663,0.3608,58248.0,58245.0,0.18]
[1726192618160,0.3608,58248.0,58247.0,0.085837]
[1726192619761,0.3608,58248.0,58246.0,0.001]
[1726192619762,0.004,58256.0,58255.0,0.085825]
[1726192620055,0.3608,58256.0,58255.0,0.085825]
[1726192620852,0.002,58256.0,58255.0,0.001]
[1726192621053,0.002,58256.0,58255.0,0.086825]
[1726192621662,0.3608,58261.0,58260.0,0.085817]
[1726192623262,0.3628,58261.0,58260.0,0.087817]
[1726192624548,1.47772,58261.0,58260.0,0.002]
[1726192624749,1.47772,58261.0,58256.0,0.085822]
[1726192625058,0.3608,58257.0,58256.0,0.085822]
[1726192625866,0.3608,58257.0,58256.0,0.086822]
[1726192626261,0.3608,58257.0,58256.0,0.085822]
[1726192626465,0.3608,58257.0,58256.0,0.086822]
[1726192627165,0.3608,58257.0,58256.0,0.087822]
[1726192628255,0.3608,58257.0,58256.0,0.086822]
[1726192628560,0.3608,58257.0,58256.0,0.087822]
[1726192628561,0.3638,58257.0,58256.0,0.087822]
[1726192628968,0.24,58263.0,58256.0,0.087822]
[1726192628969,0.004,58273.0,58257.0,0.51492]
[1726192629276,0.3608,58287.0,58286.0,0.085779]
[1726192630465,0.3608,58287.0,58280.0,0.3608]
[1726192630466,0.3608,58287.0,58280.0,0.446587]
[1726192630659,0.3608,58287.0,58280.0,0.085787]
[1726192630660,0.3608,58281.0,58280.0,0.085787]
[1726192631463,0.3628,58287.0,58282.0,0.085785]
[1726192631663,0.3628,58287.0,58280.0,0.001]
[1726192631862,0.3628,58287.0,58280.0,0.002]
[1726192631863,0.001,58281.0,58280.0,0.002]
[1726192632067,0.36887671,58281.0,58280.0,0.002]
[1726192632657,0.3608,58281.0,58280.0,0.002]
[1726192633661,0.3608,58281.0,58280.0,0.001]
[1726192633871,0.3608,58281.0,58280.0,0.002]
[1726192634274,1.47556,58281.0,58270.0,0.004]
[1726192634474,0.3608,58276.0,58267.0,0.05103429]
[1726192634775,0.053,58275.0,58267.0,0.05103429]
[1726192635163,0.053,58275.0,58274.0,0.085797]
[1726192637567,0.1033,58275.0,58271.0,0.05103429]
[1726192637788,0.1043,58275.0,58274.0,0.001]
[1726192638074,0.1043,58275.0,58274.0,0.086797]
[1726192638473,0.1063,58275.0,58274.0,0.087797]
[1726192638981,0.1063,58275.0,58274.0,0.002]
[1726192639175,0.1063,58275.0,58270.0,0.085802]
[1726192639176,0.7063,58275.0,58270.0,0.085802]
[1726192639377,0.7063,58275.0,58260.0,0.24]
[1726192639378,0.3608,58271.0,58260.0,0.004]
[1726192639579,0.3598,58265.0,58255.0,0.244]
[1726192639872,0.0514,58264.0,58263.0,0.085813]
[1726192640566,0.0504,58264.0,58263.0,0.085813]
[1726192641376,0.0494,58264.0,58263.0,0.086813]
[1726192641769,0.0524,58264.0,58263.0,0.087813]
[1726192641976,0.003,58264.0,58263.0,0.087813]
[1726192643379,0.003,58264.0,58263.0,0.002]
[1726192643678,1.203731,58264.0,58263.0,0.002]
[1726192644577,1.203731,58264.0,58254.0,0.004]
[1726192644578,1.17002,58264.0,58254.0,0.004]
[1726192644883,0.3608,58255.0,58251.0,0.08583]
[1726192645082,0.0511,58254.0,58252.0,0.085829]
[1726192645681,0.0511,58254.0,58253.0,0.085828]
[1726192645980,0.004,58261.0,58259.0,0.085818]
[1726192646172,0.140913,58264.0,58261.0,0.085816]
[1726192646373,0.137913,58264.0,58261.0,0.085816]
[1726192646675,0.137913,58264.0,58256.0,0.085822]
[1726192646676,0.0521,58264.0,58256.0,0.085822]
[1726192646878,0.085816,58262.0,58260.0,0.10276515]
[1726192647178,0.30026405,58265.0,58261.0,0.12825655]
[1726192647370,0.600691,58264.0,58263.0,0.00552062]
[1726192647576,0.600691,58264.0,58256.0,0.10276515]
[1726192647577,0.085822,58257.0,58256.0,0.10276515]
[1726192647874,0.085822,58257.0,58256.0,0.12845867]
[1726192648386,0.599782,58257.0,58256.0,0.12845867]
[1726192648783,0.605782,58257.0,58256.0,0.12945867]
[1726192648982,0.090822,58257.0,58256.0,0.12945867]
[1726192649289,1.291604,58257.0,58256.0,0.12945867]
[1726192649681,1.652404,58257.0,58256.0,0.001]
[1726192649881,1.656404,58257.0,58256.0,0.06965127]
[1726192650077,1.656404,58257.0,58248.0,0.10276515]
[1726192650078,0.085834,58249.0,58248.0,0.10276515]
[1726192650281,0.6008,58249.0,58245.0,0.10276515]
[1726192650585,0.5998,58249.0,58242.0,0.10276515]
[1726192650788,0.085844,58242.0,58241.0,0.10276515]
[1726192650995,0.3608,58244.0,58240.0,0.10276515]
[1726192650996,0.085845,58241.0,58240.0,0.10276515]
[1726192651292,0.085847,58240.0,58239.0,0.051]
[1726192651500,0.085847,58240.0,58239.0,0.1014853]
[1726192651795,0.084847,58240.0,58239.0,0.1014853]
[1726192651976,0.084847,58240.0,58237.0,0.446651]
[1726192651977,0.084847,58240.0,58238.0,0.1014853]
[1726192652177,0.085848,58239.0,58238.0,0.1014853]
[1726192652482,0.08585,58238.0,58237.0,0.4633653]
[1726192652804,0.36074817,58238.0,58232.0,0.1014853]
[1726192652989,0.085851,58237.0,58235.0,0.085854]
[1726192653378,0.085854,58235.0,58230.0,0.085861]
[1726192653777,0.085859,58232.0,58229.0,0.1014853]
[1726192653979,0.6108,58233.0,58232.0,0.003]
[1726192654192,0.446657,58233.0,58232.0,0.003]
[1726192654388,1.811817,58233.0,58232.0,0.003]
[1726192654587,1.897674,58233.0,58232.0,0.003]
[1726192654789,0.08587,58224.0,58223.0,0.004]
[1726192654987,1.2108,58224.0,58214.0,0.1014853]
[1726192655185,1.2108,58224.0,58213.0,0.1014853]
[1726192655186,0.085878,58219.0,58213.0,0.1014853]
[1726192655382,0.085878,58219.0,58211.0,0.3514853]
[1726192655680,0.084878,58219.0,58215.0,0.085884]
[1726192655986,0.3608,58216.0,58210.0,0.1014853]
[1726192656188,0.08589,58211.0,58209.0,0.3608]
[1726192656390,0.3608,58216.0,58209.0,0.3608]
[1726192656585,0.3608,58216.0,58213.0,0.085886]
[1726192656987,0.3598,58216.0,58209.0,0.3608]
[1726192657194,0.445683,58216.0,58209.0,0.3608]
[1726192657389,0.445683,58216.0,58213.0,0.002]
[1726192657695,0.3698,58216.0,58213.0,0.003]
[1726192657894,0.085885,58214.0,58213.0,0.001]
[1726192658090,0.085885,58214.0,58213.0,0.002]
[1726192658392,1.201245,58214.0,58213.0,0.001]
[1726192658695,0.085885,58214.0,58213.0,0.002]
[1726192659086,0.085885,58214.0,58213.0,0.001]
[1726192659395,0.096885,58214.0,58213.0,0.002]
[1726192659998,0.011,58214.0,58213.0,0.002]
[1726192660179,0.096885,58214.0,58213.0,0.002]
[1726192660383,0.107885,58214.0,58213.0,0.002]
[1726192660685,0.096885,58214.0,58213.0,0.001]
[1726192660885,0.107885,58214.0,58213.0,0.002]
[1726192661589,0.022,58214.0,58213.0,0.002]
[1726192661795,0.107885,58214.0,58213.0,0.002]
[1726192662094,0.0477237,58214.0,58213.0,0.002]
[1726192665392,0.5630837,58214.0,58213.0,0.002]
[1726192665593,1.1630837,58214.0,58213.0,0.002]
[1726192665795,0.085901,58203.0,58202.0,0.0523]
[1726192665997,0.085901,58203.0,58202.0,0.0483]
[1726192666788,0.3608,58204.0,58202.0,0.0483]
[1726192666989,0.3608,58204.0,58202.0,0.0523]
[1726192667289,0.085901,58203.0,58202.0,0.0523]
[1726192668088,0.085901,58203.0,58202.0,0.0503]
[1726192668303,0.085901,58203.0,58202.0,0.0523]
[1726192669388,0.085901,58203.0,58202.0,0.0503]
[1726192669587,0.085901,58203.0,58202.0,0.0513]
[1726192669905,0.085901,58203.0,58202.0,0.004]
[1726192671392,0.085901,58203.0,58191.0,0.0992]
[1726192671393,0.085918,58192.0,58191.0,0.0992]
[1726192671700,0.446718,58192.0,58191.0,0.0992]
[1726192671902,0.446718,58192.0,58180.0,0.085934]
[1726192671903,0.085933,58182.0,58180.0,0.085934]
[1726192672203,0.085933,58182.0,58178.0,0.004]
[1726192672204,0.25,58187.0,58181.0,0.499434]
[1726192672413,0.08593,58184.0,58181.0,0.4135]
[1726192672702,0.25,58187.0,58183.0,0.08593]
[1726192672891,0.25,58187.0,58181.0,0.4135]
[1726192672892,0.25,58187.0,58184.0,0.085929]
[1726192673092,0.236,58187.0,58184.0,0.085929]
[1726192673296,0.308925,58187.0,58184.0,0.085929]
[1726192673501,0.085928,58186.0,58184.0,0.085929]
[1726192674100,0.078929,58184.0,58183.0,0.01]
[1726192674303,0.3608,58186.0,58181.0,0.0527]
[1726192674304,0.085932,58182.0,58181.0,0.0527]
[1726192674509,0.326932,58182.0,58181.0,0.0527]
[1726192674798,0.319932,58182.0,58181.0,0.0527]
[1726192675003,0.319932,58182.0,58179.0,0.0504]
[1726192675004,0.085935,58180.0,58179.0,0.0504]
[1726192675203,0.3608,58181.0,58179.0,0.0504]
[1726192675901,0.446735,58181.0,58179.0,0.0504]
[1726192676089,0.085935,58181.0,58179.0,0.0504]
[1726192676602,0.085935,58181.0,58179.0,0.136336]
[1726192676804,0.6118,58186.0,58179.0,0.136336]
[1726192676805,0.27673332,58186.0,58181.0,0.085934]
[1726192677006,0.085927,58186.0,58181.0,0.085934]
[1726192677508,0.25,58189.0,58179.0,0.13471611]
[1726192677713,0.3608,58191.0,58181.0,0.08431611]
[1726192677893,0.002,58186.0,58183.0,0.08431611]
[1726192678205,0.002,58186.0,58184.0,0.20854434]
[1726192678400,0.3608,58191.0,58190.0,0.085921]
[1726192680202,0.3618,58191.0,58190.0,0.085921]
[1726192680403,0.3638,58191.0,58190.0,0.17026845]
[1726192681296,0.3638,58191.0,58190.0,0.21037714]
[1726192683106,0.3638,58191.0,58190.0,0.21052384]
[1726192683292,0.3638,58191.0,58190.0,0.31202742]
[1726192683497,0.3638,58191.0,58190.0,0.21052384]
[1726192684599,0.449719,58191.0,58190.0,0.12460284]
[1726192685098,0.601481,58190.0,58189.0,0.08472559]
[1726192685299,0.085922,58189.0,58187.0,0.08472559]
[1726192685607,0.085922,58189.0,58187.0,0.08474889]
[1726192685608,0.696724,58188.0,58187.0,0.08474889]
[1726192685804,0.085927,58186.0,58185.0,0.08474889]
[1726192686912,0.005,58186.0,58185.0,0.08474889]
[1726192687298,0.095927,58186.0,58185.0,0.08474889]
[1726192688806,0.181854,58186.0,58185.0,0.08474889]
[1726192689507,0.085928,58185.0,58184.0,0.08474889]